Cogmind - Beta 16.1 *** ADVENTURER MODE // 2026.03.20 @ 17:57:47 Player: Ms. V3-11A Result: Destroyed by C-57 Dissector with Dual-blade Saw Performance ------------- Evolutions (8) 4000 Regions Visited (19) 3800 Robots Destroyed (155) 775 Value Destroyed (6709) 6709 Prototype IDs (43) 860 Alien Tech Used (3) 600 Bonus (7604) 7604 TOTAL SCORE: 24348 Bonus ------- Follower Combat Kills 1782 Met Zhirov 300 Built Enhanced Grunts 300 Found Hidden Lab 3000 Used Core Reset Matrix 3000 Hacked Protovariant 500 Acquired SGEMP 2000 Friendly Fire -3278 Cogmind --------- Core Integrity 0/1450 Matter 226/300 Energy 499/500 System Corruption 23% Temperature Cool (0) Movement Core (100) Ox1 Location -2/Research Parts ------- > --- POWER (2) -------- (None) > --- PROPULSION (6) --- (None) > --- UTILITY (13) ----- Improved Energy Well Graphene Brace > --- WEAPON (2) ------- (None) > --- INVENTORY (5) ---- Advanced Matter Compressor (400) Advanced Recalibrator Guided Remote Datajack SGEMP Prototype Peak State ------------ > --- POWER ------------ Micro Antimatter Reactor Light Quantum Reactor > --- PROPULSION ------- Cooled Gravmag System Improved Antigrav System Improved Antigrav System Improved Antigrav System Improved Linear Gravjet Cooled Antigrav System > --- UTILITY ---------- Experimental Cooling System Medium Storage Unit Improved Energy Well Advanced Target Analyzer Advanced Target Analyzer Layered Light Armor Plating Centrium Medium Armor Plating Graphene Brace Advanced Point Defense System Advanced Hacking Suite System Shield Improved System Shield Component Analysis Suite > --- WEAPON ----------- Gamma Rifle Multirail > --- INVENTORY -------- Micro Antimatter Reactor Advanced Matter Compressor Experimental Reaction Control System Layered Light Armor Plating Advanced Recalibrator Gamma Rifle Guided Remote Datajack SGEMP Prototype [Rating: 166] Favorites ----------- Power Neutrino Core Engine Light Ion Engine Power Core Neutrino Core Reactor Micro Antimatter Reactor Propulsion Improved Hover Unit Treads Light Treads Leg Aluminum Leg Hover Unit Improved Hover Unit Utility Medium Storage Unit Device Graphene Brace Storage Medium Storage Unit Processor Machine Analyzer Hackware Improved Hacking Suite Protection Medium Regenerative Plating Weapon Advanced KE Penetrator Energy Gun Gamma Rifle Energy Cannon Nova Cannon Ballistic Gun Advanced KE Penetrator Launcher Rocket Launcher Impact Weapon Heavy Hammer Slashing Weapon Axe Piercing Weapon Plasma Lance Build | -11 -10 -9 -8 -7 -6 -6 -6 -6 -5 -5 -5 -5 -4 -4 -4 -4 -3 -3 -2 ------- Run | Yrd Mat Mat Mat Fac Fac Ext Cet Arc Fac Upp Upp Zhi Pro Fac Arm Lab Res Tes Res Slots Evolved 16 | . . 2 2 2 2 . . . 2 . . . . 2 . . 2 . 2 Power 1 | . . . . 1 . . . . . . . . . . . . . . . Propulsion 4 | . . 1 1 1 1 . . . . . . . . . . . . . . Utility 11 | . . 1 1 . 1 . . . 2 . . . . 2 . . 2 . 2 Weapon . | . . . . . . . . . . . . . . . . . . . . Parts Attached 188 | . 11 9 38 3 6 11 6 11 5 . 1 6 1 2 . 2 8 45 23 Power 23 | . 1 1 5 1 2 1 1 2 1 . . . . . . . 1 3 4 Engine 9 | . 1 1 4 1 . 1 1 . . . . . . . . . . . . Core 7 | . . . 1 . 2 . . 2 1 . . . . . . . 1 . . Reactor 7 | . . . . . . . . . . . . . . . . . . 3 4 Propulsion 62 | . 5 3 17 1 3 5 2 5 . . . 3 . . . . 4 9 5 Treads 5 | . . . 4 . . . . . . . . . . . . . . 1 . Leg 4 | . 3 . . . . . . . . . . . . . . . . 1 . Wheel . | . . . . . . . . . . . . . . . . . . . . Hover 53 | . 2 3 13 1 3 5 2 5 . . . 3 . . . . 4 7 5 Flight . | . . . . . . . . . . . . . . . . . . . . Utility 66 | . 2 2 8 1 1 2 1 2 4 . 1 3 1 2 . 2 3 21 10 Device 25 | . . . 1 . . 1 1 1 . . . 1 1 2 . 1 1 13 2 Storage 7 | . 1 . . . . . . . 1 . . . . . . . . 3 2 Processor 6 | . . 1 1 . . . . . . . 1 . . . . . . 1 2 Hackware 11 | . . . . 1 1 1 . 1 2 . . 1 . . . 1 2 . 1 Protection 17 | . 1 1 6 . . . . . 1 . . 1 . . . . . 4 3 Artifact . | . . . . . . . . . . . . . . . . . . . . Weapon 37 | . 3 3 8 . . 3 2 2 . . . . . . . . . 12 4 Energy Gun 8 | . 1 1 1 . . . 1 . . . . . . . . . . 3 1 Energy Cannon 4 | . . . . . . . . . . . . . . . . . . 3 1 Ballistic Gun 20 | . 2 2 4 . . 3 1 2 . . . . . . . . . 4 2 Ballistic Cannon . | . . . . . . . . . . . . . . . . . . . . Launcher 1 | . . . 1 . . . . . . . . . . . . . . . . Special Weapon . | . . . . . . . . . . . . . . . . . . . . Impact Weapon 2 | . . . 1 . . . . . . . . . . . . . . 1 . Slashing Weapon 1 | . . . 1 . . . . . . . . . . . . . . . . Piercing Weapon 1 | . . . . . . . . . . . . . . . . . . 1 . Special Melee Weapon . | . . . . . . . . . . . . . . . . . . . . Unidentified Prototypes 24 | . . . . . . . . . 1 . . 4 1 . 1 4 1 12 . Corrupted Parts 9 | . . . 3 . . . . . . . . . . . . . . 4 2 System Corruption 29 | . . . 9 . . . . . . . . . . . . . . 13 7 Parts Lost 104 | . . 4 22 . . 12 2 . . . . . . 1 . . 1 25 37 Power 12 | . . 1 3 . . 1 . . . . . . . . . . . 2 5 Propulsion 37 | . . 2 10 . . 8 2 . . . . . . . . . . 3 12 Utility 35 | . . . 5 . . 1 . . . . . . . 1 . . 1 11 16 Weapon 20 | . . 1 4 . . 2 . . . . . . . . . . . 9 4 Highest Loss Streak 17 | . . 1 8 . . 5 2 . . . . . . 1 . . 1 17 12 To Critical Strikes . | . . . . . . . . . . . . . . . . . . . . Average Backups 8 | 5 6 9 8 9 9 9 9 9 8 10 10 10 10 9 10 9 9 7 5 Power . | 1 1 . . . . . 1 . . . . . . . . . . . . Propulsion 1 | 3 2 3 1 2 1 . . . . 1 1 1 1 1 1 1 2 2 1 Utility 4 | . . 3 3 5 7 6 5 7 6 8 7 6 6 5 6 6 4 3 2 Weapon 1 | 1 1 2 2 2 1 1 2 1 1 1 1 2 2 2 2 2 2 1 . Tool/Special . | . . . . . . . . . . . . . . . . . . . . Unused Backups 42 | . 8 3 3 2 . 2 3 3 . . 1 1 . . . . 8 3 5 Power 2 | . . . . . . . . . . . . . . . . . 1 . 1 Propulsion 6 | . 4 . . . . . . . . . . . . . . . 2 . . Utility 24 | . 2 2 1 . . 2 3 3 . . 1 1 . . . . 5 3 1 Weapon 9 | . 2 1 2 2 . . . . . . . . . . . . . . 2 Tool/Special 1 | . . . . . . . . . . . . . . . . . . . 1 Average Slot Usage (%) 85 | . 99 96 75 99 99 90 55 78 92 94 94 93 94 91 89 90 88 74 81 Engine 3 | . 14 10 4 14 4 1 2 5 . . . . . . . . . . . Core 4 | . . . 1 . 8 9 . 4 11 11 11 11 11 10 10 10 9 3 . Leg 1 | . 17 . . . . . . . . . . . . . . . . . . Hover 22 | . 10 32 16 38 40 32 8 21 28 29 29 29 29 26 26 26 18 13 22 Device 6 | . . . . . . 5 8 12 . . . . . 7 10 10 14 14 18 Storage 7 | . 14 11 9 7 6 6 6 6 5 5 5 5 5 5 5 5 4 3 7 Processor 6 | . . 8 10 7 6 6 6 6 5 5 6 11 11 10 10 10 9 5 3 Hackware 8 | . . . . 5 12 6 6 6 22 23 21 17 17 15 10 11 17 14 8 Protection 6 | . 13 11 9 8 6 5 4 . 5 5 5 4 5 5 5 5 4 3 6 Ballistic Gun 11 | . 27 19 7 15 13 12 7 11 11 11 11 11 11 10 10 10 9 5 3 Peak Build Rating 166 | 6 8 13 25 33 42 44 53 83 97 97 97 108 110 120 114 123 142 165 166 Average Rating 66 | 6 7 12 16 32 39 39 35 66 93 97 96 102 108 116 113 114 139 125 130 On Entrance 72 | 6 6 8 13 24 33 42 32 53 83 97 97 97 108 108 114 112 123 142 144 Avg Prop Armor Cover (%) 30 | . . . . . . . . . . . . . . . . . . 30 . Naked Turns . | . . . . . . . . . . . . . . . . . . . . Heaviest Build 92 | 14 17 20 28 32 37 40 32 53 58 58 58 58 58 61 61 61 62 92 69 Greatest Support 84 | 20 20 21 80 35 42 47 34 62 62 62 62 68 68 68 68 68 84 84 70 Greatest Overweight (x) 6 | . 1 . 6 . . 2 4 . . . . . . . . . 1 2 3 Average Overweight (x) . | . . . . . . . 1 . . . . . . . . . . . . Largest Inventory Capacity 10 | 8 10 10 10 10 10 10 10 10 10 10 10 10 10 10 10 10 10 10 10 Average Capacity 9 | 8 8 10 10 10 10 10 10 10 10 10 10 10 10 10 10 10 10 8 9 Most Carried 10 | 5 10 10 10 10 10 10 10 10 10 10 10 10 10 10 10 10 10 10 10 Average Carried 8 | 3 6 9 8 9 9 9 9 9 8 10 9 10 10 9 9 9 9 8 7 Final Capacity 10 | 8 10 10 10 10 10 10 10 10 10 10 10 10 10 10 10 10 10 5 5 Final Carried 10 | 2 10 9 10 10 10 10 10 10 10 10 10 10 10 10 9 10 10 5 5 Class Distribution -------------------- 41% | Scavenger-Mutant 19% | Mutant 16% | Hacker-Mutant 11% | Wizard-Mutant 9% | Commander-Mutant Dominant Class ---------------- Mutant | -10/Materials Scavenger-Mutant | -9/Materials Mutant | -8/Materials Hacker-Mutant | -7/Factory Hacker-Mutant | -6/Factory Scavenger-Mutant | -6/Extension Commander-Mutant | -6/Cetus Scavenger-Mutant | -6/Archives Scavenger-Mutant | -5/Factory Scavenger-Mutant | -5/Upper Caves Scavenger-Mutant | -5/Upper Caves Hacker-Mutant | -5/Zhirov Hacker-Mutant | -4/Proximity Caves Hacker-Mutant | -4/Factory Hacker-Mutant | -4/Armory Hacker-Mutant | -4/Lab Wizard-Mutant | -3/Research Wizard-Mutant | -3/Testing Scavenger-Mutant | -2/Research Resources | -11 -10 -9 -8 -7 -6 -6 -6 -6 -5 -5 -5 -5 -4 -4 -4 -4 -3 -3 -2 ----------- Run | Yrd Mat Mat Mat Fac Fac Ext Cet Arc Fac Upp Upp Zhi Pro Fac Arm Lab Res Tes Res Matter Collected 5794 | 200 127 503 601 180 52 1047 182 493 60 130 66 . 128 16 . . 334 889 786 Remotely . | . . . . . . . . . . . . . . . . . . . . Salvage Created 7145 | . 466 802 1372 63 52 931 86 312 92 75 123 . 54 41 . . 280 1048 1348 Parts 368 | . 40 51 57 5 3 35 7 20 5 . 1 . 2 5 . . 22 61 54 Haulers Intercepted 3 | . 1 1 . . . . . . . . . . . . . . . 1 . Recyclers Shooed 5 | . . 1 . . . 2 . . . . . . . . . . 1 . 1 Parts Field Recycled . | . . . . . . . . . . . . . . . . . . . . Retrieved Matter . | . . . . . . . . . . . . . . . . . . . . Parts Self-Destructed 25 | . . . . . . . . . . . 17 . 8 . . . . . . Prevented . | . . . . . . . . . . . . . . . . . . . . Parts Restored . | . . . . . . . . . . . . . . . . . . . . Kills | -11 -10 -9 -8 -7 -6 -6 -6 -6 -5 -5 -5 -5 -4 -4 -4 -4 -3 -3 -2 ------- Run | Yrd Mat Mat Mat Fac Fac Ext Cet Arc Fac Upp Upp Zhi Pro Fac Arm Lab Res Tes Res Combat Hostiles Destroyed 113 | . 15 14 30 1 1 16 . . . . 2 . 1 . . . 6 13 14 Melee 7 | . . . 7 . . . . . . . . . . . . . . . . Guns 95 | . 15 14 18 1 1 16 . . . . 2 . 1 . . . 6 9 12 Cannons 4 | . . . . . . . . . . . . . . . . . . 3 1 AOE 2 | . . . 2 . . . . . . . . . . . . . . . . Classes Destroyed 14 | . 4 4 1 . . 1 . . 1 . . . . . . . 1 2 . Worker 1 | . . . . . . . . . 1 . . . . . . . . . . Hauler 3 | . 1 1 . . . . . . . . . . . . . . . 1 . Recycler 7 | . 1 1 1 . . 2 . . . . . . . . . . . . 2 Mechanic 1 | . . 1 . . . . . . . . . . . . . . . . . Operator 18 | . . 1 2 2 . 2 . 9 . . . . . 2 . . . . . Watcher 11 | . . 2 3 . . 3 . . 2 . . . . . . . . 1 . Swarmer 28 | . 9 3 7 . . 3 . . . . . . . . . . 4 . 2 Grunt 36 | . 6 5 13 . . 5 . . . . 2 . . . . . . 1 4 Sentry 25 | . . 6 9 1 1 6 . . . . . . . . . . . . 2 Hunter 8 | . . . 1 . . . . . . . . . 1 . . . . 4 2 Programmer 11 | . . . . . . . . . . . . . . . . . 2 5 4 Behemoth 1 | . . . . . . 1 . . . . . . . . . . . . . Striker 2 | . . . . . . . . . . . . . . . . . . 2 . Alpha 7 1 | . . . . . . . . . . . . . . . . . . 1 . Packrat 1 | . . . . . . . . . . 1 . . . . . . . . . Thug 1 | . . . . . . 1 . . . . . . . . . . . . . Best Kill Streak 8 | . 5 8 7 1 1 5 . 5 2 . 2 . 1 1 . . 4 4 7 Combat Bots Only 7 | . 5 6 6 1 1 3 . . . . 2 . 1 . . . 4 4 7 Max Kills in Single Turn 2 | . 1 1 2 1 1 1 1 1 2 1 1 . 1 1 . . 1 1 1 Gunslinging 1 | . . . 1 . . . . . . . . . . . . . . . . Exploded 1 | . . . 1 . . . . . . . . . . . . . . . . Melee 1 | . . . 1 . . . . . . . . . . . . . . . . Uniques/NPCs Destroyed 1 | . . . . . . . 1 . . . . . . . . . . . . A7 (-6/Cetus) Combat | -11 -10 -9 -8 -7 -6 -6 -6 -6 -5 -5 -5 -5 -4 -4 -4 -4 -3 -3 -2 -------- Run | Yrd Mat Mat Mat Fac Fac Ext Cet Arc Fac Upp Upp Zhi Pro Fac Arm Lab Res Tes Res Hostile Shots Fired 1692 | . 73 66 277 60 19 234 1 4 . . 5 . 4 8 4 . 44 441 452 Missed 630 | . 24 24 85 33 7 102 . . . . 3 . 2 2 2 . 22 160 164 Hits 1062 | . 49 42 192 27 12 132 1 4 . . 2 . 2 6 2 . 22 281 288 Melee 25 | . . . . . . . . . . . . . . . . . 1 19 5 Projectile 1037 | . 49 42 192 27 12 132 1 4 . . 2 . 2 6 2 . 21 262 283 Critical Strikes 54 | . . 1 6 . . 1 . . . . . . . . . . 3 19 24 Actively Blocked 44 | . . . 1 . . . . . . . . . . . . . 3 16 24 Part Disruptions 3 | . . . . . . . . . . . . . . . . . . 1 2 Damage Taken 14552 | . 385 393 2112 177 73 961 33 72 63 . 48 . 54 125 134 . 421 4819 4682 Core 3494 | . 48 81 484 4 4 147 . . . . 16 . . . . . 28 1215 1467 Absorbed by Shields 591 | . . . . . . 105 10 . . . . . . . . . . 476 . Redirected to Shielding 310 | . 26 13 16 . . 1 . . . . . . . . . . . 126 128 Ignored by Resistances 4760 | . 124 114 645 56 24 327 11 20 16 . 13 . 14 34 35 . 117 1452 1758 Regen/Repaired (Parts) 584 | . . . . 80 . . . . 276 . . . 16 . 8 30 48 126 . Core Remaining (%) 71 | 100 80 79 12 99 . . . 82 . . . . 98 . . 91 . 4 . Volleys Fired 507 | . 58 56 87 8 3 59 24 24 3 2 7 . 1 5 1 9 10 87 63 Largest 2 | . 2 2 2 2 2 2 2 2 2 2 2 . 2 2 2 2 2 2 2 Hottest 223 | . 70 68 88 56 56 58 60 93 70 70 70 . 70 70 70 70 70 223 126 Shots Fired 904 | . 116 107 142 16 6 115 48 48 6 4 14 . 2 10 2 18 20 143 87 Gun 864 | . 116 107 138 16 6 115 48 48 6 4 14 . 2 10 2 18 20 116 78 Cannon 36 | . . . . . . . . . . . . . . . . . . 27 9 Launcher 4 | . . . 4 . . . . . . . . . . . . . . . . Special . | . . . . . . . . . . . . . . . . . . . . Kinetic 778 | . 113 99 119 16 6 115 48 45 6 4 14 . 2 10 2 18 20 78 63 Thermal 45 | . 3 . 19 . . . . . . . . . . . . . . 23 . Explosive 4 | . . . 4 . . . . . . . . . . . . . . . . Electromagnetic 77 | . . 8 . . . . . 3 . . . . . . . . . 42 24 Robot Hit Streak 42 | . 20 24 42 12 10 27 12 8 2 5 8 . 1 5 6 . 8 17 21 Robot Miss Streak 16 | . 2 2 2 7 3 16 1 4 1 . 4 . 2 2 . . 2 2 4 Penetration Max 1 | . . . . . . . . 1 . . 1 . . . . . 1 1 1 Secondary Targets 19 | . 5 . 6 . . 4 . . . . 1 . . . . . 1 1 1 Max Gunslinging Chain 1 | . 1 . 1 . . 1 . . . . 1 . . . . . 1 1 1 Shots Hit Robots 709 | . 52 77 157 15 6 104 41 37 2 3 9 . 1 8 2 . 14 102 79 Core Hits 472 | . 25 35 55 19 9 171 13 21 3 1 4 . 1 4 . . 8 43 60 Critical Kills 19 | . 1 . 4 . . . . 1 1 1 . . . . . . 4 4 3 Critical Parts Destroyed 21 | . . . 6 . . . . 3 . 1 1 . . 1 . . 1 3 5 Critical Strikes 51 | . 1 . 13 . . . . 4 1 2 2 . . 1 . . 5 8 14 Burn 2 | . . . 2 . . . . . . . . . . . . . . . . Destroy 34 | . 1 . 2 . . . . 4 1 2 2 . . 1 . . 5 7 9 Corrupt 6 | . . . . . . . . . . . . . . . . . . 1 5 Smash 8 | . . . 8 . . . . . . . . . . . . . . . . Sever 1 | . . . 1 . . . . . . . . . . . . . . . . Melee Attacks 54 | . . . 45 . . . . . . . . . . . . . . 9 . Impact 38 | . . . 34 . . . . . . . . . . . . . . 4 . Slashing 11 | . . . 11 . . . . . . . . . . . . . . . . Piercing 5 | . . . . . . . . . . . . . . . . . . 5 . Sneak Attacks 2 | . . . 2 . . . . . . . . . . . . . . . . Combat Hostiles . | . . . . . . . . . . . . . . . . . . . . Follow-up Attacks 8 | . . . 8 . . . . . . . . . . . . . . . . Damage Inflicted 16911 | . 631 967 3220 268 134 2443 920 1043 165 86 357 . 20 208 49 . 444 3108 2848 Guns 13448 | . 565 967 1703 268 134 2384 920 1043 80 86 357 . 20 208 49 . 444 1716 2504 Cannons 1131 | . . . . . . . . . . . . . . . . . . 834 297 Explosions 504 | . 62 . 278 . . . . . 85 . . . . . . . . 79 . Melee 1667 | . . . 1236 . . . . . . . . . . . . . . 431 . Ramming 161 | . 4 . 3 . . 59 . . . . . . . . . . . 48 47 Kinetic 12223 | . 565 874 1421 268 134 2384 920 950 80 86 357 . 20 208 49 . 444 1250 2213 Thermal 1111 | . . . 282 . . . . . . . . . . . . . . 829 . Explosive 340 | . 62 . 278 . . . . . . . . . . . . . . . . Electromagnetic 1409 | . . 93 . . . . . 93 85 . . . . . . . . 550 588 Impact 1093 | . . . 956 . . . . . . . . . . . . . . 137 . Slashing 280 | . . . 280 . . . . . . . . . . . . . . . . Piercing 294 | . . . . . . . . . . . . . . . . . . 294 . Highest Corruption 29 | . . . 10 . . . . . . . . . . . . . . 29 23 Average Corruption 7 | . . . 6 . . . . . . . . . . . . . . 7 10 Corruption Purged . | . . . . . . . . . . . . . . . . . . . . Corruption Blocked . | . . . . . . . . . . . . . . . . . . . . Effects 65 | . . . 22 . . . . . . . . . . . . . . 22 21 Message Errors 9 | . . . 2 . . . . . . . . . . . . . . 4 3 Matter Fused 15 | . . . 3 . . . . . . . . . . . . . . 5 7 Heat Flow Errors 4 | . . . 2 . . . . . . . . . . . . . . . 2 Energy Discharges 10 | . . . 3 . . . . . . . . . . . . . . 4 3 Parts Rejected 1 | . . . . . . . . . . . . . . . . . . 1 . Data Loss (minor) 11 | . . . 5 . . . . . . . . . . . . . . 3 3 Data Loss (major) 4 | . . . 2 . . . . . . . . . . . . . . 1 1 Misfires 2 | . . . 2 . . . . . . . . . . . . . . . . Alerts 2 | . . . 2 . . . . . . . . . . . . . . . . Misdirections 4 | . . . . . . . . . . . . . . . . . . 2 2 Weapon Failures 3 | . . . 1 . . . . . . . . . . . . . . 2 . Overload Shots . | . . . . . . . . . . . . . . . . . . . . Overflow Damage 275 | . . . 213 . . 29 . . . . . . . . . . . 33 . Projectiles 10 | . . . . . . . . . . . . . . . . . . 10 . Explosions 17 | . . . 17 . . . . . . . . . . . . . . . . Melee 248 | . . . 196 . . 29 . . . . . . . . . . . 23 . Knockbacks 4 | . . . 3 . . 1 . . . . . . . . . . . . . Impact 4 | . . . 3 . . 1 . . . . . . . . . . . . . Kinetic . | . . . . . . . . . . . . . . . . . . . . Secondary . | . . . . . . . . . . . . . . . . . . . . Self-Inflicted Damage 101 | . . . 27 . . 29 . . . . . . . . . . . 23 22 Shots 3 | . . . 3 . . . . . . . . . . . . . . . . Rammed 9 | . . . 1 . . 1 . . . . . . . . . . . 2 5 Targets Rammed 10 | . 1 . 1 . . 1 . . . . . . . . . . . 2 5 Kicked 1 | . 1 . . . . . . . . . . . . . . . . . . Crushed . | . . . . . . . . . . . . . . . . . . . . Highest Temperature 376 | . 66 36 376 24 54 89 . 3 102 79 164 12 21 39 30 114 34 351 205 Average Temperature 40 | . 14 11 75 6 21 36 . 3 32 29 36 6 12 15 17 58 14 53 61 Received Heat Transfer 2624 | . 210 144 1161 54 27 336 . 18 . . 18 . . 27 27 . 54 341 207 Effects 7 | . . . 3 . . . . . . . . . . . . . . 1 3 Shutdowns 2 | . . . 1 . . . . . . . . . . . . . . 1 . Interference 5 | . . . 2 . . . . . . . . . . . . . . . 3 Siege Activations . | . . . . . . . . . . . . . . . . . . . . Martial Activations . | . . . . . . . . . . . . . . . . . . . . Shielding Activations . | . . . . . . . . . . . . . . . . . . . . Robots Disrupted . | . . . . . . . . . . . . . . . . . . . . Combat Hostiles . | . . . . . . . . . . . . . . . . . . . . Robots Corrupted 7 | . . . 4 . . 1 . . . . . . . . . . . 1 1 Combat Hostiles 5 | . . . 3 . . . . . . . . . . . . . . 1 1 Parts Fried 13 | . . . 5 . . . . . . . . . . . . . . 4 4 Impact Corruptions 13 | . . . 11 . . 1 . . . . . . . . . . . 1 . Robots Melted . | . . . . . . . . . . . . . . . . . . . . Combat Hostiles . | . . . . . . . . . . . . . . . . . . . . Parts Melted . | . . . . . . . . . . . . . . . . . . . . Heat Transferred 1271 | . . . 814 . . . . . . . . . . . . . . 457 . Parts Sabotaged . | . . . . . . . . . . . . . . . . . . . . Parts Stolen . | . . . . . . . . . . . . . . . . . . . . Parts Stripped . | . . . . . . . . . . . . . . . . . . . . Power Chain Reactions 1 | . . . . . . . . . . . . . . . . . . 1 . Alert | -11 -10 -9 -8 -7 -6 -6 -6 -6 -5 -5 -5 -5 -4 -4 -4 -4 -3 -3 -2 ------- Run | Yrd Mat Mat Mat Fac Fac Ext Cet Arc Fac Upp Upp Zhi Pro Fac Arm Lab Res Tes Res Maximum Alert Level 1 | . . . 1 . . 1 . . . . . . . . . . . 1 . Low Security (%) 93 | 100 100 100 99 100 100 97 100 100 100 . . . . 100 100 . 100 51 100 Level 1 6 | . . . . . . 2 . . . . . . . . . . . 48 . Level 2 . | . . . . . . . . . . . . . . . . . . . . Level 3 . | . . . . . . . . . . . . . . . . . . . . Level 4 . | . . . . . . . . . . . . . . . . . . . . Level 5 . | . . . . . . . . . . . . . . . . . . . . High Security . | . . . . . . . . . . . . . . . . . . . . Max Security . | . . . . . . . . . . . . . . . . . . . . Peak Influence 395 | . 156 130 200 119 68 213 93 64 57 . . . . 115 94 . 90 395 135 Initial 65 | . . 14 34 47 45 17 54 . . . . . . 28 44 . . 25 65 Average 64 | . 36 84 72 32 38 73 20 27 7 . . . . 43 78 . 22 182 51 Influence Increases 6171 | . 464 430 913 234 117 1022 129 237 115 . 270 . 95 147 50 . 219 879 850 Destroy 0b10 Robot/C 3060 | . 300 280 600 20 20 640 80 80 20 . 160 . 60 40 . . 120 260 380 Destroy 0b10 Robot/NC 225 | . 10 30 30 10 . 45 5 45 15 . . . . 10 . . . 10 15 Destroy Leader 578 | . 52 86 156 10 10 76 . . 4 . 20 . 20 10 . . 10 54 70 Allied During Kill 359 | . . . . . . 123 41 55 3 . 90 . 15 2 . . . . 30 Successful Hack 309 | . 31 17 35 14 27 54 . . 4 . . . . 12 . . 12 87 16 Select Force Hacks 50 | . . . . . . . . . . . . . . . 50 . . . . Disable Machine 270 | . 63 . 9 . . 27 . 27 63 . . . . 45 . . . 27 9 Destroy Structure 150 | . 8 2 23 . . 12 3 15 6 . . . . 28 . . 2 36 15 Partial Spotted 165 | . . . . 45 15 . . 15 . . . . . . . . 15 . 75 Lose Combat Pursuer 1005 | . . 15 60 135 45 45 . . . . . . . . . . 60 405 240 Influence Decreases 6160 | . 424 372 888 248 184 951 242 237 68 47 240 30 43 94 61 94 165 799 973 Entered New Map 643 | . . 26 64 76 64 25 59 . . 22 . 30 . 24 61 94 . 29 69 Time Decay 3877 | . 424 205 607 172 120 606 123 182 51 25 200 . 43 60 . . 155 520 384 Lost Part 997 | . . 30 217 . . 120 20 . . . . . . 10 . . 10 250 340 Lost Ally 532 | . . . . . . 200 40 55 17 . 40 . . . . . . . 180 Purge Threat 111 | . . 111 . . . . . . . . . . . . . . . . . Squads Dispatched 35 | . 1 1 2 8 1 3 . . 1 . . . . 1 1 . 1 6 9 Investigation 9 | . 1 . . 6 1 . . . . . . . . . 1 . . . . Extermination 8 | . . . . 1 . . . . . . . . . . . . 1 3 3 Reinforcement 15 | . . 1 2 1 . 3 . . 1 . . . . 1 . . . 2 4 Assault 3 | . . . . . . . . . . . . . . . . . . 1 2 Garrison . | . . . . . . . . . . . . . . . . . . . . Intercept . | . . . . . . . . . . . . . . . . . . . . Searches Triggered . | . . . . . . . . . . . . . . . . . . . . Construction Impeded 2 | . . . . . . 1 . . 1 . . . . . . . . . . Haulers Reinforced . | . . . . . . . . . . . . . . . . . . . . Active Scanning Responses . | . . . . . . . . . . . . . . . . . . . . Cargo Convoy Interrupts . | . . . . . . . . . . . . . . . . . . . . Stealth | -11 -10 -9 -8 -7 -6 -6 -6 -6 -5 -5 -5 -5 -4 -4 -4 -4 -3 -3 -2 --------- Run | Yrd Mat Mat Mat Fac Fac Ext Cet Arc Fac Upp Upp Zhi Pro Fac Arm Lab Res Tes Res Distress Signals 27 | . 1 2 2 1 . 4 1 . . . . . . 1 1 . 2 6 6 Communications Jammed . | . . . . . . . . . . . . . . . . . . . . Distress Signals . | . . . . . . . . . . . . . . . . . . . . Times Spotted 343 | . 27 22 42 18 6 34 5 20 3 . 6 . 3 14 4 . 18 53 68 Peak Tracking Total 24 | . 6 8 6 6 4 4 5 2 2 . 5 . 2 13 4 . 8 16 24 Tactical Retreats 32 | . . 1 3 4 1 2 . . . . . . . . . . 2 11 8 Traps | -11 -10 -9 -8 -7 -6 -6 -6 -6 -5 -5 -5 -5 -4 -4 -4 -4 -3 -3 -2 ------- Run | Yrd Mat Mat Mat Fac Fac Ext Cet Arc Fac Upp Upp Zhi Pro Fac Arm Lab Res Tes Res Traps Triggered 9 | . 1 . 1 1 . 2 . . 1 . . . . . . . 1 1 1 Indirectly . | . . . . . . . . . . . . . . . . . . . . Trap Hack Attempts . | . . . . . . . . . . . . . . . . . . . . Triggered . | . . . . . . . . . . . . . . . . . . . . Disarmed 12 | . . 6 . . . . . . . . . . . . . . . 6 . Reprogrammed . | . . . . . . . . . . . . . . . . . . . . Reused . | . . . . . . . . . . . . . . . . . . . . Traps Extracted . | . . . . . . . . . . . . . . . . . . . . Installed . | . . . . . . . . . . . . . . . . . . . . Triggered . | . . . . . . . . . . . . . . . . . . . . Machines | -11 -10 -9 -8 -7 -6 -6 -6 -6 -5 -5 -5 -5 -4 -4 -4 -4 -3 -3 -2 ---------- Run | Yrd Mat Mat Mat Fac Fac Ext Cet Arc Fac Upp Upp Zhi Pro Fac Arm Lab Res Tes Res Machines Disabled 31 | . 7 . 1 . . 3 . 3 7 . . . . 5 . 1 . 3 1 Max in Single Turn 4 | . 3 . 1 . . . . . 4 . . . . 1 . 1 . 1 . Garrison Access 6 | . . . . 1 1 . . . . . . . . 1 . . . 1 2 Machines Repaired . | . . . . . . . . . . . . . . . . . . . . Machines Dismantled . | . . . . . . . . . . . . . . . . . . . . Machines Sabotaged 1 | . . . . . . . . . . . . . . . 1 . . . . Overloaded Fab Kills . | . . . . . . . . . . . . . . . . . . . . Hacking | -11 -10 -9 -8 -7 -6 -6 -6 -6 -5 -5 -5 -5 -4 -4 -4 -4 -3 -3 -2 --------- Run | Yrd Mat Mat Mat Fac Fac Ext Cet Arc Fac Upp Upp Zhi Pro Fac Arm Lab Res Tes Res Machines Accessed 84 | . 9 8 10 8 6 16 . . 4 . 1 2 . 4 1 1 3 8 3 Terminals 61 | . 7 6 8 4 4 14 . . 2 . . . . 3 1 . 2 7 3 Fabricators 2 | . . . . 1 1 . . . . . . . . . . . . . . Repair Stations 3 | . . . 1 1 . . . . 1 . . . . . . . . . . Recycling Units 6 | . 2 1 . . . 2 . . 1 . . . . . . . . . . Scanalyzers 4 | . . 1 1 1 . . . . . . . . . . . . 1 . . Garrison Access 4 | . . . . 1 1 . . . . . . . . 1 . . . 1 . Total Hacks 241 | . 20 30 42 21 14 33 . . 17 . 1 9 . 8 2 1 12 27 4 Successful 169 | . 14 22 30 11 11 23 . . 15 . 1 9 . 6 2 1 7 15 2 Failed 71 | . 6 8 11 10 3 10 . . 2 . . . . 2 . . 5 12 2 Catastrophic 7 | . . . 4 1 . . . . . . . . . . . . . 1 1 Database Lockouts 1 | . . . 1 . . . . . . . . . . . . . . . . Manual 94 | . 10 13 13 7 5 8 1 . 9 . . . . 4 1 . 7 13 3 Terminals 175 | . 18 26 21 13 11 30 . . 10 . . . . 7 2 . 7 26 4 Fabricators 5 | . . . . 3 2 . . . . . . . . . . . . . . Repair Stations 12 | . . . 5 1 . . . . 6 . . . . . . . . . . Recycling Units 7 | . 2 1 . . . 3 . . 1 . . . . . . . . . . Scanalyzers 27 | . . 3 16 3 . . . . . . . . . . . . 5 . . Garrison Access 4 | . . . . 1 1 . . . . . . . . 1 . . . 1 . Terminal Hacks 83 | . 4 9 6 3 7 18 . . 6 . 1 9 . 5 1 1 2 10 1 Record 11 | . . . 3 . . 2 . . . . . 5 . . . 1 . . . Part Schematic 6 | . . . . . 1 2 . . 3 . . . . . . . . . . Robot Analysis 9 | . . . . . 1 2 . . . . . 4 . . . . . 2 . Prototype ID Bank 8 | . 4 1 . . 1 . . . . . . . . 1 1 . . . . Open Door 10 | . . . . . 1 8 . . . . 1 . . . . . . . . Level Access Points 1 | . . . . . . . . . . . . . . . . . . 1 . Branch Access Points 7 | . . 1 . 1 . . . . 1 . . . . 1 . . 1 1 1 Terminal Index 7 | . . . . 1 1 1 . . 1 . . . . 1 . . 1 1 . Fabricator Index 1 | . . . . . 1 . . . . . . . . . . . . . . Repair Station Index 1 | . . . 1 . . . . . . . . . . . . . . . . Scanalyzer Index 2 | . . . 1 . 1 . . . . . . . . . . . . . . Unreport Threat 1 | . . 1 . . . . . . . . . . . . . . . . . Locate Traps 1 | . . 1 . . . . . . . . . . . . . . . . . Disarm Traps 3 | . . 2 . . . . . . . . . . . . . . . 1 . Hauler Manifests 2 | . . . . . . 1 . . . . . . . . . . . 1 . Registered Components 3 | . . 1 . 1 . . . . . . . . . . . . . 1 . Registered Prototypes 1 | . . . . . . . . . 1 . . . . . . . . . . Zone Layout 7 | . . 2 1 . . 2 . . . . . . . 2 . . . . . Protovariant Controls 2 | . . . . . . . . . . . . . . . . . . 2 . Fabricator Hacks 3 | . . . . 1 2 . . . . . . . . . . . . . . Network Status 1 | . . . . 1 . . . . . . . . . . . . . . . Load Schematic 1 | . . . . . 1 . . . . . . . . . . . . . . Build 1 | . . . . . 1 . . . . . . . . . . . . . . Repair Station Hacks 9 | . . . 3 . . . . . 6 . . . . . . . . . . Scan Component 3 | . . . . . . . . . 3 . . . . . . . . . . Repair 3 | . . . . . . . . . 3 . . . . . . . . . . Refit 3 | . . . 3 . . . . . . . . . . . . . . . . Recycling Unit Hacks 6 | . 2 1 . . . 2 . . 1 . . . . . . . . . . Retrieve Components 6 | . 2 1 . . . 2 . . 1 . . . . . . . . . . Scanalyzer 25 | . . 3 16 3 . . . . . . . . . . . . 3 . . Insert Component 11 | . . 1 8 1 . . . . . . . . . . . . 1 . . Analyze 11 | . . 1 8 1 . . . . . . . . . . . . 1 . . Retrieve Study 3 | . . 1 . 1 . . . . . . . . . . . . 1 . . Garrison Access Hacks 4 | . . . . 1 1 . . . . . . . . 1 . . . 1 . Seal Access 4 | . . . . 1 1 . . . . . . . . 1 . . . 1 . Unauthorized Hacks 39 | . 8 9 5 3 1 3 . . 2 . . . . . 1 . 2 4 1 Terminals 37 | . 8 9 5 1 1 3 . . 2 . . . . . 1 . 2 4 1 Botnet 24 | . 3 4 3 1 1 3 . . 2 . . . . . . . 2 4 1 Skim 12 | . 5 5 2 . . . . . . . . . . . . . . . . Sabotage 1 | . . . . . . . . . . . . . . . 1 . . . . Fabricators 1 | . . . . 1 . . . . . . . . . . . . . . . Liberate 1 | . . . . 1 . . . . . . . . . . . . . . . Repair Stations 1 | . . . . 1 . . . . . . . . . . . . . . . Patch 1 | . . . . 1 . . . . . . . . . . . . . . . Recycling Units . | . . . . . . . . . . . . . . . . . . . . Scanalyzers . | . . . . . . . . . . . . . . . . . . . . Garrison Access . | . . . . . . . . . . . . . . . . . . . . Data Cores Recovered 4 | . . . . 2 . 1 . . . . . . . 1 . . . . . Used 3 | . . . . 2 . . . . . . . . . 1 . . . . . Hacking Detections 57 | . 7 7 9 6 3 10 . . 2 . . . . 2 . . 2 6 3 Full Trace Events 5 | . . . . 4 1 . . . . . . . . . . . . . . Feedback Events . | . . . . . . . . . . . . . . . . . . . . Feedback Blocked . | . . . . . . . . . . . . . . . . . . . . Robot Schematics Acquired . | . . . . . . . . . . . . . . . . . . . . Robots Built . | . . . . . . . . . . . . . . . . . . . . Authchips . | . . . . . . . . . . . . . . . . . . . . Time . | . . . . . . . . . . . . . . . . . . . . Total Robot Build Rating . | . . . . . . . . . . . . . . . . . . . . Part Schematics Acquired 19 | . . 1 7 1 . 2 . . 3 . . . . . . . 1 4 . Parts Built 2 | . . . . . 2 . . . . . . . . . . . . . . Authchips . | . . . . . . . . . . . . . . . . . . . . Time 31 | . . . . . 31 . . . . . . . . . . . . . . Total Part Build Rating 4 | . . . . . 4 . . . . . . . . . . . . . . Part Studies Acquired 3 | . . 1 . 1 . . . . . . . . . . . . 1 . . Parts Repaired 3 | . . . . . . . . . 3 . . . . . . . . . . Time 162 | . . . . . . . . . 162 . . . . . . . . . . Parts Recycled . | . . . . . . . . . . . . . . . . . . . . Recycled Matter . | . . . . . . . . . . . . . . . . . . . . Retrieved Matter . | . . . . . . . . . . . . . . . . . . . . Retrieved Components 32 | . 17 . . . . 12 . . 3 . . . . . . . . . . Parts Scanalyzed 10 | . . 1 7 1 . . . . . . . . . . . . 1 . . Part Schematics Acquired 10 | . . 1 7 1 . . . . . . . . . . . . 1 . . Parts Damaged . | . . . . . . . . . . . . . . . . . . . . Bothacking | -11 -10 -9 -8 -7 -6 -6 -6 -6 -5 -5 -5 -5 -4 -4 -4 -4 -3 -3 -2 ------------ Run | Yrd Mat Mat Mat Fac Fac Ext Cet Arc Fac Upp Upp Zhi Pro Fac Arm Lab Res Tes Res Used RIF Installer . | . . . . . . . . . . . . . . . . . . . . Robots Hacked . | . . . . . . . . . . . . . . . . . . . . Non-combat . | . . . . . . . . . . . . . . . . . . . . Combat . | . . . . . . . . . . . . . . . . . . . . Robot Hacks Applied . | . . . . . . . . . . . . . . . . . . . . Relay Couplers Released 1 | . . . . . . . . . . . . . . . . . . . 1 Machine Destruction 1 | . . . . . . . . . . . . . . . . . . . 1 Fabnet Peak Effective % . | . . . . . . . . . . . . . . . . . . . . Robots Rewired 14 | . . . . . . 13 . . . . . . . . . . . 1 . Allies Hacked . | . . . . . . . . . . . . . . . . . . . . Hacks Repelled . | . . . . . . . . . . . . . . . . . . . . Allies | -11 -10 -9 -8 -7 -6 -6 -6 -6 -5 -5 -5 -5 -4 -4 -4 -4 -3 -3 -2 -------- Run | Yrd Mat Mat Mat Fac Fac Ext Cet Arc Fac Upp Upp Zhi Pro Fac Arm Lab Res Tes Res Total Allies 41 | . . . . 3 . 24 5 . . . . . . . . . . 1 8 Largest Group 15 | . . . . . . 13 15 14 10 9 9 7 7 2 . . . 1 6 Highest-Rated Group 895 | . . . . . . 504 895 736 638 549 549 476 476 185 . . . 160 160 Highest-Rated Ally 160 | . . . . . . 159 159 96 96 96 96 96 96 96 . . . 160 160 Total Orders 4 | . . . . . . . 2 2 . . . . . . . . . . . STAY 2 | . . . . . . . 1 1 . . . . . . . . . . . FOLLOW 2 | . . . . . . . 1 1 . . . . . . . . . . . Ally Attacks 335 | . . . . . . 129 41 39 4 . 45 . 17 5 . . . 1 54 Total Damage 8581 | . . . . . . 2519 703 1000 136 . 1168 . 508 588 . . . 111 1848 Kills 47 | . . . . . . 19 6 4 1 . 6 . 2 3 . . . . 6 Allies Corrupted . | . . . . . . . . . . . . . . . . . . . . Allies Melted 2 | . . . . . . . . . 1 . . . . . . . . . 1 Intel | -11 -10 -9 -8 -7 -6 -6 -6 -6 -5 -5 -5 -5 -4 -4 -4 -4 -3 -3 -2 ------- Run | Yrd Mat Mat Mat Fac Fac Ext Cet Arc Fac Upp Upp Zhi Pro Fac Arm Lab Res Tes Res Active Infowar (turns) 8099 | . . 385 1333 388 245 1433 626 410 392 210 429 170 333 132 16 366 571 660 . Decoding 2388 | . . . . . . . . . . . 140 170 333 132 16 366 571 660 . Machine Analysis 7678 | . . 385 1333 388 245 1433 626 410 392 210 429 170 333 132 16 366 571 239 . Robot Analysis Total 9 | . . . . . 1 2 . . . . . 4 . . . . . 2 . Derelict Logs Recovered 4 | . . . . . . . . . . . 1 . 3 . . . . . . Drone Launches . | . . . . . . . . . . . . . . . . . . . . Drone Recoveries . | . . . . . . . . . . . . . . . . . . . . Decoded 0b10 Intel 39 | . . . . . . . . . . . . . . 4 1 . 17 17 . Traps 7 | . . . . . . . . . . . . . . . . . 5 2 . Emergency Access 5 | . . . . . . . . . . . . . . . . . . 5 . Items 21 | . . . . . . . . . . . . . . 3 . . 10 8 . Machines 2 | . . . . . . . . . . . . . . 1 . . . 1 . Patrols 3 | . . . . . . . . . . . . . . . 1 . 1 1 . Guards 1 | . . . . . . . . . . . . . . . . . 1 . . Exploration | -11 -10 -9 -8 -7 -6 -6 -6 -6 -5 -5 -5 -5 -4 -4 -4 -4 -3 -3 -2 ------------- Run | Yrd Mat Mat Mat Fac Fac Ext Cet Arc Fac Upp Upp Zhi Pro Fac Arm Lab Res Tes Res Turns Passed 10796 | 3 1194 464 1333 388 245 1433 626 410 392 210 429 170 333 132 16 366 571 1056 1025 Spaces Moved 8762 | 1 710 530 732 622 360 991 253 232 320 152 352 141 426 218 32 171 548 1055 916 Core 83 | . . . 41 . . . 28 . . . . . . . . . . 11 3 Treads 197 | . . . 193 . . . . . . . . . . . . . . 4 . Legs 500 | 1 498 . . . . . . . . . . . . . . . . 1 . Wheels . | . . . . . . . . . . . . . . . . . . . . Hover 7982 | . 212 530 498 622 360 991 225 232 320 152 352 141 426 218 32 171 548 1039 913 Flight . | . . . . . . . . . . . . . . . . . . . . Fastest Speed 33 | 120 116 52 48 52 50 40 56 44 44 44 44 38 38 38 38 38 38 38 33 Average Speed 62 | 120 118 52 118 54 50 62 116 48 44 44 44 41 38 38 38 38 43 52 46 Slowest Speed 350 | 120 120 52 350 56 50 176 300 56 44 44 44 44 38 38 38 38 95 180 190 Overloaded Moves . | . . . . . . . . . . . . . . . . . . . . Propulsion Burnouts . | . . . . . . . . . . . . . . . . . . . . Robots Hopped . | . . . . . . . . . . . . . . . . . . . . Potential Cave-ins . | . . . . . . . . . . . . . . . . . . . . Cave-ins Triggered . | . . . . . . . . . . . . . . . . . . . . Teleports 1 | . . . . . . . . . . . . . . . 1 . . . . Exploration Rate (%) 46 | 2 97 60 69 16 11 85 52 78 12 36 56 60 56 9 4 88 14 93 32 Regions Visited 19 Branch Regions 10 Pre-discovered Areas 6 | . 1 1 . . . . . . . . . 3 1 . . . . . . Known Exits Taken 5 | . 1 . . . . . . . 1 . . . . 1 . . 1 1 . Unknown Exits Taken 14 | 1 . 1 1 1 1 1 1 1 . 1 1 1 1 . 1 1 . . . Scrap Searched 6 | . . . . . . . . . . 2 3 . 1 . . . . . . Spaces Dug 6 | . . . . . . . . . . . . . . . . . . 6 . Terrain Destroyed 86 | . 7 . 24 . . . 4 13 1 2 1 . . 3 . . . 27 4 Melee . | . . . . . . . . . . . . . . . . . . . . Projectile 35 | . . . . . . . 4 13 1 2 1 . . 3 . . . 11 . AOE 47 | . 7 . 24 . . . . . . . . . . . . . . 16 . Terrain Rammed . | . . . . . . . . . . . . . . . . . . . . Walls Destroyed . | . . . . . . . . . . . . . . . . . . . . Machines Disabled . | . . . . . . . . . . . . . . . . . . . . Actions | -11 -10 -9 -8 -7 -6 -6 -6 -6 -5 -5 -5 -5 -4 -4 -4 -4 -3 -3 -2 --------- Run | Yrd Mat Mat Mat Fac Fac Ext Cet Arc Fac Upp Upp Zhi Pro Fac Arm Lab Res Tes Res Total 13095 | 4 952 621 1002 656 421 1695 538 480 563 290 613 251 594 256 33 452 868 1386 1420 Wait 3194 | . 152 8 64 11 43 539 234 196 226 137 247 91 164 31 . 266 269 131 385 Move 8743 | . 709 529 731 621 359 990 252 231 319 151 351 140 425 217 31 170 547 1054 916 Hop . | . . . . . . . . . . . . . . . . . . . . Pick Up 104 | . 11 9 15 4 2 7 7 6 4 . 3 1 . 1 . 1 12 8 13 Fast Attach 136 | . 2 3 20 1 . 6 4 6 3 . 1 7 2 1 . 4 5 53 18 Attach 53 | . 2 5 11 2 2 5 4 . 2 . . . . 1 1 . 3 6 9 Detach 10 | . . . 3 1 . . 3 . . . . . . . . . 2 1 . Swap 60 | . 7 3 12 4 6 8 1 6 3 . . 3 . . . . 3 2 2 Drop 165 | 4 10 8 24 4 6 11 9 11 3 . 4 9 2 . . 2 17 32 9 Fire 507 | . 58 56 87 8 3 59 24 24 3 2 7 . 1 5 1 9 10 87 63 Melee 43 | . . . 34 . . . . . . . . . . . . . . 9 . Ram 9 | . . . 1 . . 1 . . . . . . . . . . . 2 5 Kick 1 | . 1 . . . . . . . . . . . . . . . . . . Crush . | . . . . . . . . . . . . . . . . . . . . Escape Stasis 24 | . . . . . . 24 . . . . . . . . . . . . . Rewire 46 | . . . . . . 45 . . . . . . . . . . . 1 . Trap . | . . . . . . . . . . . . . . . . . . . . Miscellaneous . | . . . . . . . . . . . . . . . . . . . . Route ------- -11/Scrapyard -10/Materials (discovered 6 exits: *Mat x3 / *Min x2 / Sub) -9/Materials (discovered 2 exits: *Mat / *Min) -8/Materials (discovered 4 exits: *Fac x3 / [*Sto]) -7/Factory (discovered 3 exits: *Fac / Low x2) -6/Factory (discovered 2 exits: *Fac / *Ext) -6/Extension (discovered 3 exits: *Fac x2 / *Cet) -6/Cetus -6/Archives (discovered 2 exits: *Fac / [*Hub]) -5/Factory (discovered 2 exits: *Upp x2) -5/Upper Caves -5/Upper Caves -5/Zhirov -4/Proximity Caves -4/Factory (discovered 3 exits: Upp x2 / *Arm) -4/Armory -4/Lab -3/Research (discovered 3 exits: *Res / *Tes x2) -3/Testing -2/Research (discovered 2 exits: Qua x2) History --------- Turn | Location | Event 4 | -11/Scrapyard | Discovered new exit (range 0) 4 | -11/Scrapyard | Entered Materials 74 | -10/Materials | Discovered new exit (range 5) 289 | -10/Materials | Discovered new exit (range 6) 305 | -10/Materials | Build established: Mutant 586 | -10/Materials | Discovered new exit (range 13) 816 | -10/Materials | Discovered new exit (range 8) 947 | -10/Materials | Identified exit to Subcaves 968 | -10/Materials | Learned location of 2 exits from Subcaves 981 | -10/Materials | Learned location of 1 exit from Storage 985 | -10/Materials | Learned 4 Recycling zone layouts 1000 | -10/Materials | Learned location of Storage (-8) 1024 | -10/Materials | Identified exit to Mines 1024 | -10/Materials | Identified exit to Materials 1051 | -10/Materials | Discovered exit to Mines (range 14) 1198 | -10/Materials | Entered another Materials area 1198 | -9/Materials | Evolved 2 slots: Propulsion x1, Utility x1 1321 | -9/Materials | Discovered new exit (range 7) 1342 | -9/Materials | Identified exit to Mines 1569 | -9/Materials | Build established: Scavenger-Mutant 1631 | -9/Materials | Discovered new exit (range 16) 1643 | -9/Materials | Learned location of Zion (-6) 1662 | -9/Materials | Entered another Materials area 1662 | -8/Materials | Evolved 2 slots: Propulsion x1, Utility x1 1676 | -8/Materials | Discovered new exit (range 15) 1858 | -8/Materials | Discovered new exit (range 15) 2033 | -8/Materials | Lost 8 parts (1p4n3w) 2084 | -8/Materials | Core integrity fell below 50% 2140 | -8/Materials | Lost 5 parts (3n2u) 2381 | -8/Materials | Build established: Mutant 2422 | -8/Materials | Discovered new exit (range 9) 2612 | -8/Materials | Central database locked down 2648 | -8/Materials | Core integrity fell below 20% 2648 | -8/Materials | System corruption reached 10% 2850 | -8/Materials | Discovered new exit (range 9) 2995 | -8/Materials | Entered Factory 2995 | -7/Factory | Evolved 2 slots: Power x1, Propulsion x1 3051 | -7/Factory | Identified exit to Lower Caves 3380 | -7/Factory | Discovered new exit (range 6) 3383 | -7/Factory | Entered another Factory area 3383 | -6/Factory | Evolved 2 slots: Propulsion x1, Utility x1 3411 | -6/Factory | Discovered new exit (range 16) 3558 | -6/Factory | Fabricated Imp. Hover Unit (x2) 3624 | -6/Factory | Discovered new exit (range 9) 3628 | -6/Factory | Entered Extension 3680 | -6/Extension | Build established: Hacker-Mutant 3799 | -6/Extension | Rescued a captive Derelict 3800 | -6/Extension | Rescued a captive Derelict 4011 | -6/Extension | Build established: Scavenger-Mutant 4024 | -6/Extension | Rescued a captive Derelict 4038 | -6/Extension | Lost 3 allies 4083 | -6/Extension | Rescued a captive Derelict 4513 | -6/Extension | Spotted B-75 Beast 4523 | -6/Extension | Destroyed B-75 Beast 4526 | -6/Extension | Spotted B-75 Beast 4551 | -6/Extension | Allies destroyed B-75 Beast 4577 | -6/Extension | Lost 5 parts (1p3n1w) 4592 | -6/Extension | Discovered new exit (range 4) 4608 | -6/Extension | Rescued A7 4698 | -6/Extension | Rescued a captive Derelict 4776 | -6/Extension | Rescued a captive Derelict 4778 | -6/Extension | Rescued a captive Derelict 4878 | -6/Extension | Lost 3 allies 4900 | -6/Extension | Rescued a captive Derelict 4901 | -6/Extension | Rescued a captive Derelict 4936 | -6/Extension | Rescued a captive Derelict 4995 | -6/Extension | Discovered new exit (range 10) 4997 | -6/Extension | Discovered new exit (range 6) 5061 | -6/Extension | Entered Cetus 5061 | -6/Cetus | Accompanied by 13 allies (A7) 5066 | -6/Cetus | Acquired a Cetus Manufacturing Module code from A7 5090 | -6/Cetus | Spotted Cetus Guard 5090 | -6/Cetus | Spotted Cetus Guard 5102 | -6/Cetus | Allies destroyed Cetus Guard 5102 | -6/Cetus | Spotted Cetus Guard 5114 | -6/Cetus | Spotted Cetus Guard 5121 | -6/Cetus | Allies destroyed Cetus Guard 5150 | -6/Cetus | Lost 3 allies 5161 | -6/Cetus | Build established: Commander-Mutant 5207 | -6/Cetus | Started Cetus Manufacturing Module 5232 | -6/Cetus | Manufactured an Enhanced Grunt 5257 | -6/Cetus | Manufactured an Enhanced Grunt 5282 | -6/Cetus | Manufactured an Enhanced Grunt 5307 | -6/Cetus | Manufactured an Enhanced Grunt 5332 | -6/Cetus | Manufactured an Enhanced Grunt 5372 | -6/Cetus | Murdered A7 5376 | -6/Cetus | Extracted ID and sensor layout for unrecognized location from A7's data core 5496 | -6/Cetus | Found Prototype Protection 5505 | -6/Cetus | Identified Med. Regenerative Plating 5612 | -6/Cetus | Discovered new exit (range 15) 5687 | -6/Cetus | Entered Archives 5687 | -6/Archives | Accompanied by 14 allies 5840 | -6/Archives | Lost 4 allies 5863 | -6/Archives | Discovered new exit (range 15) 5879 | -6/Archives | Discovered new exit (range 15) 6097 | -6/Archives | Entered Factory 6097 | -5/Factory | Accompanied by 10 allies 6097 | -5/Factory | Evolved 2 slots: Utility x2 6159 | -5/Factory | Build established: Scavenger-Mutant 6179 | -5/Factory | Repaired Gravmag System 6249 | -5/Factory | Repaired Antigrav Array 6300 | -5/Factory | Repaired Matter Compressor 6374 | -5/Factory | Watched by a mysterious "MATRIX" hacker. 6409 | -5/Factory | Discovered new exit (range 10) 6418 | -5/Factory | Identified exit to Upper Caves 6489 | -5/Factory | Entered Upper Caves 6489 | -5/Upper Caves | Accompanied by 9 allies 6656 | -5/Upper Caves | Discovered new exit (range 8) 6699 | -5/Upper Caves | Entered another Upper Caves area 6699 | -5/Upper Caves | Accompanied by 9 allies 6724 | -5/Upper Caves | Attracted the attention of an 0b10 checkpoint 6745 | -5/Upper Caves | Learned Factory terminal intel 6906 | -5/Upper Caves | Spotted B-75 Beast 6948 | -5/Upper Caves | Allies destroyed B-75 Beast 7077 | -5/Upper Caves | Discovered new exit (range 8) 7128 | -5/Upper Caves | Entered Zhirov 7128 | -5/Zhirov | Accompanied by 7 allies 7128 | -5/Zhirov | Discovered new exit (range 3) 7136 | -5/Zhirov | Met Zhirov 7170 | -5/Zhirov | Learned location of Quarantine (-2) 7170 | -5/Zhirov | Learned location of Testing (-3) 7170 | -5/Zhirov | Learned location of Command (-1) 7172 | -5/Zhirov | Zhirov requested help retrieving the SGEMP Prototype 7180 | -5/Zhirov | Found Alien Artifact 7180 | -5/Zhirov | Identified Integrated Reactor 7180 | -5/Zhirov | Installed Integrated Reactor, increased core energy generation (+10) 7188 | -5/Zhirov | Found Alien Artifact 7298 | -5/Zhirov | Entered Proximity Caves 7298 | -4/Proximity Caves | Accompanied by 7 allies 7370 | -4/Proximity Caves | Learned Research terminal intel 7381 | -4/Proximity Caves | Learned Research non-interactive machine intel 7396 | -4/Proximity Caves | Spotted B-86 Titan 7467 | -4/Proximity Caves | Lost 4 allies 7479 | -4/Proximity Caves | Build established: Hacker-Mutant 7600 | -4/Proximity Caves | Found Prototype Device 7600 | -4/Proximity Caves | Identified Exp. Thermal Shield 7609 | -4/Proximity Caves | Discovered new exit (range 12) 7631 | -4/Proximity Caves | Entered Factory 7631 | -4/Factory | Accompanied by 2 allies 7631 | -4/Factory | Evolved 2 slots: Utility x2 7632 | -4/Factory | Loaded intel: 25 terminal locations 7729 | -4/Factory | Identified exit to Upper Caves 7729 | -4/Factory | Identified exit to Armory 7763 | -4/Factory | Entered Armory 7764 | -4/Armory | Met VL-GR5, who suggested a friendly competition 7778 | -4/Armory | Identified Transdimensional Reconstructor 7778 | -4/Armory | Warped through subspace to slip node 7778 | -4/Armory | Discovered new exit (range 1) 7779 | -4/Armory | Entered Lab 7779 | -4/Lab | Discovered new exit (range 9) 7784 | -4/Lab | Hidden lab's door opened automatically 7784 | -4/Lab | Sensor layout match revealed 7785 | -4/Lab | Gained access to the hidden lab's interior 8008 | -4/Lab | Unable to decrypt terminal 8043 | -4/Lab | Found Prototype Special Weapon 8057 | -4/Lab | Found Prototype Device 8057 | -4/Lab | Identified AEGIS Remote Shield 8060 | -4/Lab | Found Prototype Hackware 8060 | -4/Lab | Identified Quantum Router 8133 | -4/Lab | Found Alien Artifact 8133 | -4/Lab | Identified Core Reset Matrix 8133 | -4/Lab | Used Core Reset Matrix 8137 | -4/Lab | Sensed 3 artifacts in vicinity 8139 | -4/Lab | Discovered new exit (range 6) 8145 | -4/Lab | Entered Research 8145 | -3/Research | Evolved 2 slots: Utility x2 8151 | -3/Research | Identified Gui. Remote Datajack 8359 | -3/Research | Discovered new exit (range 11) 8370 | -3/Research | Build established: Wizard-Mutant 8533 | -3/Research | Allied Derelicts emerged from ambush trap array 8648 | -3/Research | Identified exit to Testing 8716 | -3/Research | Entered Testing 8721 | -3/Testing | Protovariant out of control (PX-MB2VPO7KT6) 8721 | -3/Testing | Unleashed a protovariant (PX-MB2VPO7KT6) 8813 | -3/Testing | Identified exit to Research 9233 | -3/Testing | Lost 3 parts (2u1w) 9282 | -3/Testing | Spotted Striker 9282 | -3/Testing | Spotted Striker 9293 | -3/Testing | Found Prototype Protection 9293 | -3/Testing | Identified Centrium Heavy Armor Plating 9315 | -3/Testing | Spotted Alpha 7 9340 | -3/Testing | Destroyed Striker 9363 | -3/Testing | Destroyed Striker 9384 | -3/Testing | Core integrity fell below 50% 9413 | -3/Testing | Core integrity fell below 20% 9433 | -3/Testing | Lost 17 parts (2p3n7u5w) 9473 | -3/Testing | System corruption reached 10% 9578 | -3/Testing | Destroyed Alpha 7 9583 | -3/Testing | Found Corrupted Prototype Ballistic Gun 9583 | -3/Testing | Identified Multirail 9675 | -3/Testing | Stole the SGEMP Prototype 9762 | -3/Testing | Rewired PX-OYA77XSFX5 9772 | -3/Testing | Entered Research 9772 | -2/Research | Accompanied by 1 ally 9772 | -2/Research | Evolved 2 slots: Utility x2 9802 | -2/Research | Build established: Scavenger-Mutant 9898 | -2/Research | Found Prototype Device 10084 | -2/Research | Identified Adv. EM Shield 10305 | -2/Research | Destroyed 7 combat bots 10311 | -2/Research | Lost 7 parts (1p3n3u) 10526 | -2/Research | System corruption reached 10% 10555 | -2/Research | Spotted B-90 Cyclops 10588 | -2/Research | Lost 12 parts (3p3n5u1w) 10631 | -2/Research | Lost 4 parts (2u2w) 10674 | -2/Research | Spotted B-90 Cyclops 10679 | -2/Research | Identified exit to Quarantine 10741 | -2/Research | Core integrity fell below 50% 10756 | -2/Research | Emitted hypermatrix ping 10761 | -2/Research | Assembled emerged from beneath the floor 10768 | -2/Research | Core integrity fell below 20% 10769 | -2/Research | Lost 12 parts (1p5n5u1w) 10796 | -2/Research | Lost 3 allies 10797 | -2/Research | Destroyed by C-57 Dissector with Dual-blade Saw Last Messages --------------- 10743_ Penetrated by Slug. 10743_ K-01 Serf suffers critical hit (Destroy). 10743_ K-01 Serf destroyed. 10744_ P-80 Master resets R-10 Processor, system corruption cleaned. 10745_ R-10 Processor collects Quantum Reactor. 10755_ %JQ&J96D,/=HXW=|DDMK 10756_ Emitted hypermatrix ping. 10759_ Drone sends a signal. 10763_ R-10 Processor collects Unknown Special Weapon. 10770_ System corrupted: Matter fused (-6). 10778_ Slammed into G-73 Enforcer. 10784_ ALERT: Suspicious intruders detected, dispatching Cutter reinforcements to area. 10789_ System corrupted: Matter fused (-10). 10792_ Knocked back. 10793_ Acquired 9 matter. 10796_ Drone sends a signal. 10796_ Gyrokinetic Inverter destroyed. 10797_ U-05 Engineer builds a Wall. Map ----- +----------------------------------------------------+ | ?????????????????????????????????????????????????? | | ?????????????????????????????????????????????????? | | ?????????????????????????????????????????????????? | | ########?##??????????????????????????????????????? | | """"" #??????????????????????????????????????? | | ""T"" #??????????????????????????????????????? | | #?????#?#########??????????????????????? | | #?????# ? #??????????????????????? | | #?????# #??????????????????????? | | #?????# """"" #??????????????????????? | | #?????# """"" #??????????????????????? | | """"" #?????# """"" #??????????????????????? | | """"" #?????# """"" #??????????????????????? | | """"" #?????# #??????????????????????? | | #?????# #??????????????????????? | | #?????#####+#####??????????????????????? | | ####+#########???# #????????????????????????? | | ##### #????????????????????????? | | % #????????????????????????? | | ! #????????????????????????? | | ##### #????????????????????????? | | ## #### ###???# #????????????????????????? | | ?# #??# #?????## ##????????????????????????? | | ?# #??# #??????# #?????????????????????????? | | ## #??# #??????# k ########??????????????????? | | ## #??# #??????# g @c #??????????????????? | | ## #??# #??????# g cc #??????????????????? | | ## #??#+???????# R #??????????????????? | | ## #???????????# u #??????????????????? | | ? ????????????########c##/#??????????????????? | | ?T ?????????????????? n Hp#?????????????????? | | ?# ????????????????? #?????????????????? | | ?? ????????????????# "" +?????????????????? | | ??????????????????????# Y" ##????????????????? | | ??????????????????????# "" #?????????????????? | | ??????????????????????# +?????????????????? | | ##????????????????????# #?????????????????? | | #????????????????????# #?????????????????? | | #????????????????????# +?????????????????? | | #????????????????????##########?????????????????? | | #???????????????????????????????????????????????? | | #???????????????????????????????????????????????? | | #???????????????????????????????????????????????? | | #???????????????????????????????????????????????? | | #???????????????????????????????????????????????? | | #???????????????????????????????????????????????? | | #???????????????????????????????????????????????? | | ##???????????????????????????????????????????????? | | ?????????????????????????????????????????????????? | | ?????????????????????????????????????????????????? | +----------------------------------------------------+ Best States ------------- Heat Dissipation 103 Energy Generation 49 Energy Capacity 750 Matter Stores 300 Matter Capacity 700 Sight Range 16 Terrain Scan Density 10 Armor Coverage 375 Resistance: KI 40 Resistance: TH 20 Resistance: EX 20 Resistance: EM 70 Resistance: I 20 Resistance: S 20 Resistance: P 20 Core Shielding 30 Propulsion Shielding 33 Utility Shielding 33 Weapon Shielding 66 Point Defense Rating 240 Phase Shifting 10 Evasion (%) 71 Targeting Accuracy 8 Target Analysis 12 Recoil Reduction 4 Salvage Targeting 3 Offensive Hacking 48 Defensive Hacking 37 Item Schematics ----------------- Cld. Antigrav System | -3/Research | Scanalyzed Exp. Field Recycling Unit | -3/Testing | Archive Exp. Signal Interpreter | -3/Testing | Archive Helical Railgun | -3/Testing | Archive Thunder Hammer | -3/Testing | Archive Robot Schematics ------------------ None Fabricated ------------ Imp. Hover Unit | x2 | -6/Factory Repaired ---------- Gravmag System | 31% | -5/Factory Antigrav Array | 69% | -5/Factory Matter Compressor | 28% | -5/Factory Studied --------- Antigrav Array | -3/Research | Hacked Alien Tech Used ----------------- Integrated Reactor Transdimensional Reconstructor Core Reset Matrix Achievements -------------- Physics Hates This One Trick Challenges ------------ None Game ------ Seed AblativeMultinovaSpoofer Manual? 0 Play Time 02:29:58 Cumulative 519.8 hours Start 2026.03.20 @ 02:56:11 End 2026.03.20 @ 17:57:47 Sessions 3 Manual Loads 0 Difficulty Adventurer Special Mode None Game No. 369 Rogue 63 Adventurer 280 Explorer 26 Win Type - Total 2 Types 2/0/0/0/0/0/0/0/0/0 Lore% 84 Gallery% 72 Achievement% 54 Wizard Run 0 Options --------- Layout 2 ASCII 0 Keyboard 0 Movement Mouse Keybinds 0 Fullscreen 0 Font 16/Cog Map View 64x51 Zoom Use 0% Tactical HUD 1 Map Filters NONE Filters BRIGHTNESS(115)|SATURATION(100)|LOW_CONTRAST(0,16,30) Steam 1 RUN: b1fbb996-9104-4836-a1fe-279081dee47c